bitfinex/quotes_ETHUSD_20220101
["timestamp","ask_amount","ask_price","bid_price","bid_amount"]
[1641025794729,1.34369274,3723.0,3721.6,4.54540151]
[1641025794928,2.54929558,3722.9,3721.7,1.78452727]
[1641025795126,2.54929558,3722.9,3722.0,0.00682108]
[1641025795127,0.3,3722.8,3722.0,0.00682108]
[1641025795327,0.94721542,3722.2,3722.0,0.00682108]
[1641025795525,2.35041347,3722.7,3722.0,0.00682108]
[1641025795727,0.67202,3722.4,3722.0,0.00682108]
[1641025796026,2.03156451,3722.3,3722.0,0.00682108]
[1641025796225,2.33156451,3722.3,3722.0,0.00682108]
[1641025796428,2.03156451,3722.3,3721.5,0.0096632]
[1641025796662,1.043772,3722.1,3721.5,0.0096632]
[1641025796862,2.08272756,3722.7,3721.5,0.0096632]
[1641025797066,0.03668522,3723.1,3721.5,0.0096632]
[1641025797262,0.03668522,3723.1,3721.5,0.07558063]
[1641025797461,1.99352704,3722.9,3721.5,0.0096632]
[1641025797661,0.67184,3722.8,3721.6,0.00909477]
[1641025797862,1.01467,3722.4,3721.5,0.0096632]
[1641025798064,1.71237288,3722.9,3721.5,0.0096632]
[1641025798264,1.71237288,3722.9,3721.6,0.06591743]
[1641025798663,1.71237288,3722.9,3721.7,0.00852635]
[1641025799069,1.01240931,3722.3,3721.5,0.0096632]
[1641025802021,1.01240931,3722.3,3721.5,0.6814232]
[1641025802420,1.34369274,3723.0,3721.5,1.6814232]
[1641025802620,1.34369274,3723.0,3721.5,2.2814232]
[1641025803036,2.00810873,3722.9,3721.5,0.9814232]
[1641025803222,2.04169684,3722.9,3721.5,0.0096632]
[1641025803420,0.81941914,3722.5,3721.5,3.7096632]
[1641025803621,0.81941914,3722.5,3721.5,4.3096632]
[1641025804083,1.34369274,3723.0,3721.5,4.3096632]
[1641025805074,1.34369274,3723.0,3721.5,4.3]
[1641025805275,0.76443548,3722.7,3721.9,1.33503267]
[1641025805678,0.76443548,3722.7,3722.0,0.00682108]
[1641025806678,0.76443548,3722.7,3722.0,0.79993834]
[1641025807080,1.34369274,3723.0,3722.0,0.79993834]
[1641025807081,1.34369274,3723.0,3722.1,0.00625266]
[1641025808525,2.23686004,3722.9,3722.1,0.00625266]
[1641025808722,0.97184,3722.8,3722.1,0.00625266]
[1641025808921,2.23686004,3722.9,3721.9,0.0073895]
[1641025809122,0.3,3722.8,3721.9,0.0073895]
[1641025809323,0.3,3722.8,3722.3,0.02720052]
[1641025809523,0.3,3722.8,3722.6,0.02720052]
[1641025809726,2.11671259,3723.0,3722.6,0.02720052]
[1641025809923,0.67188,3722.7,3722.6,0.02720052]
[1641025810124,2.51910831,3722.7,3722.6,0.02720052]
[1641025810425,2.51910831,3722.7,3722.6,0.03061106]
[1641025810829,1.84722831,3722.7,3722.6,0.03061106]
[1641025811026,3.21032119,3722.7,3722.6,0.03061106]
[1641025811670,3.21032119,3722.9,3722.6,0.03061106]
[1641025812068,3.21032119,3722.9,3722.7,0.00284212]
[1641025813578,3.21032119,3722.9,3722.7,2.70284212]
[1641025813776,1.84722831,3722.9,3722.7,2.70284212]
[1641025813976,1.84722831,3722.9,3722.8,0.00227369]
[1641025814578,1.84722831,3722.9,3722.8,0.02947421]
[1641025814880,1.84722831,3722.9,3722.8,0.05667473]
[1641025815320,1.99019259,3722.9,3722.8,0.05667473]
[1641025815933,2.11671259,3723.0,3722.8,0.05667473]
[1641025816133,4.13432943,3723.0,3722.8,0.05667473]
[1641025816334,4.1159794,3723.0,3722.9,0.00170527]
[1641025816537,2.11671259,3723.0,3722.9,0.00170527]
[1641025818435,4.12677201,3723.0,3722.9,0.00170527]
[1641025818636,4.23046402,3723.0,3722.9,0.00170527]
[1641025818834,5.48046402,3723.0,3722.9,0.00170527]
[1641025819063,3.36671259,3723.0,3722.9,0.00170527]
[1641025820071,3.36671259,3723.0,3722.9,0.02890579]
[1641025820270,3.36671259,3723.0,3722.7,1.88653976]
[1641025820271,4.85,3722.9,3722.7,1.88653976]
[1641025820567,2.62198,3722.8,3722.7,1.88653976]
[1641025820768,2.92198,3722.8,3722.7,1.88653976]
[1641025820967,4.17198,3722.8,3722.7,1.88653976]
[1641025821169,6.01193143,3722.8,3722.7,1.88653976]
[1641025821374,9.50133572,3722.8,3722.7,1.88653976]
[1641025822173,7.55133572,3722.8,3722.7,1.88653976]
[1641025824530,7.52133572,3722.8,3722.7,1.88653976]
[1641025825833,4.85,3722.7,3722.3,0.06952583]
[1641025826032,0.67201,3722.5,3722.3,0.06952583]
[1641025826232,0.67201,3722.5,3721.4,7.0513]
[1641025826233,0.70856193,3722.5,3721.4,7.0513]
[1641025826432,0.3,3722.4,3721.4,3.8561]
[1641025826663,0.3,3722.4,3721.5,0.00738951]
[1641025826867,2.83381796,3722.5,3721.5,0.00738951]
[1641025827068,1.23084118,3722.3,3721.5,0.00738951]
[1641025827265,1.23084118,3722.3,3721.2,0.00909478]
[1641025827467,1.03212823,3721.3,3721.2,0.00909478]
[1641025828068,1.03212823,3721.3,3721.1,0.0096632]
[1641025828270,2.56053135,3721.2,3721.1,0.0096632]
[1641025828468,0.33152736,3721.2,3721.1,0.0096632]
[1641025828668,0.67219,3721.1,3720.9,0.01080005]
[1641025829671,0.67219,3721.1,3720.8,0.01136847]
[1641025829872,1.25,3721.0,3720.8,0.01136847]
[1641025830719,1.25,3720.9,3720.8,0.01136847]
[1641025831518,1.25,3720.9,3720.8,0.96826333]
[1641025831720,1.25,3720.9,3720.8,0.01136847]
[1641025834074,1.25,3720.9,3720.8,2.71136847]
[1641025835282,1.25,3720.9,3720.8,5.94173551]
[1641025835488,1.25,3720.9,3720.8,4.32356017]
[1641025836085,1.25,3720.9,3720.8,3.72356017]
[1641025836287,1.25,3720.9,3720.8,2.71136847]
[1641025840137,1.9221,3720.9,3720.8,2.71136847]
[1641025842164,2.84374176,3720.9,3720.8,2.71136847]
[1641025843367,4.87966373,3720.9,3720.8,2.71136847]
[1641025843564,2.84374176,3720.9,3720.8,2.71136847]
[1641025845171,1.9221,3720.9,3720.8,2.71136847]
[1641025846220,2.85683564,3720.9,3720.8,2.71136847]
[1641025850885,1.9221,3720.9,3720.8,2.71136847]
[1641025851993,2.2221,3720.9,3720.8,2.71136847]
[1641025852189,2.5221,3720.9,3720.8,2.71136847]
[1641025852832,4.30935988,3720.9,3720.8,2.71136847]
[1641025853037,5.1701312,3720.9,3720.8,2.71136847]
[1641025854239,7.46992479,3720.9,3720.8,2.71136847]
[1641025859282,7.16992479,3720.9,3720.8,2.71136847]
[1641025859480,7.46992479,3720.9,3720.8,2.71136847]
[1641025859777,7.46992479,3720.9,3720.8,2.7]
[1641025864174,4.8701312,3720.9,3720.8,2.7]
[1641025864674,4.00935988,3720.9,3720.8,2.7]
[1641025865073,3.26824988,3720.9,3720.8,2.7]
[1641025865475,2.03530288,3721.3,3721.1,1.24870088]
[1641025865476,0.71593432,3721.3,3721.1,1.24870088]
[1641025865677,2.74717128,3721.8,3721.6,0.82244513]
[1641025865876,2.74717128,3721.8,3721.7,0.01238356]
[1641025866275,2.01553128,3721.8,3721.7,0.01238356]
[1641025866477,1.92303128,3721.9,3721.7,0.01238356]
[1641025866678,0.91830127,3722.2,3721.9,1.68370755]
[1641025866879,7.59379796,3723.9,3722.8,0.05937866]
[1641025867085,7.59379796,3723.9,3723.6,0.01289228]
[1641025867279,7.59379796,3723.9,3723.6,0.87359228]
[1641025867678,7.59379796,3723.9,3723.6,0.8607]
[1641025867932,1.03157296,3724.4,3723.6,0.8607]
[1641025868134,1.03157296,3724.4,3722.9,0.13819997]
[1641025868330,0.00682108,3724.0,3722.9,0.13819997]
[1641025868731,0.03456325,3724.5,3723.0,1.78175625]
[1641025868732,0.86252354,3723.5,3723.0,1.78175625]
[1641025868932,0.86252354,3723.5,3723.2,0.67161]
[1641025869136,3.9835,3724.9,3723.2,0.67161]
[1641025869137,0.00341054,3723.4,3723.2,0.67161]
[1641025869535,6.18,3725.0,3723.2,0.67161]
[1641025869536,0.00284212,3723.3,3723.2,0.67161]
[1641025873696,0.00284212,3723.3,3723.2,1.61724502]
[1641025874497,0.00284212,3723.3,3723.2,0.67161]
[1641025874696,0.00204212,3723.3,3723.1,1.78175625]
[1641025875096,1.17166,3724.8,3723.2,2.7]
[1641025875324,15.73,3724.7,3723.2,2.7]
[1641025875529,1.0,3724.6,3723.2,2.7]
[1641025875731,0.77181016,3723.8,3723.2,2.7]
[1641025876134,0.00431581,3723.7,3723.2,2.7]
[1641025876531,0.00374739,3723.6,3723.2,2.7]
[1641025877034,0.00317896,3723.5,3723.2,2.7]
[1641025877435,0.00261054,3723.4,3723.2,2.7]
[1641025877830,0.00204212,3723.3,3723.2,2.7]
[1641025879080,0.00204212,3723.3,3723.2,4.04177638]
[1641025879287,0.00204212,3723.3,3723.2,2.7]
[1641025879685,2.00204212,3723.3,3723.2,2.7]
[1641025880087,2.60204212,3723.3,3723.2,2.7]
[1641025883437,0.60204212,3723.3,3723.2,2.7]
[1641025883838,0.30204212,3723.3,3723.2,2.7]
[1641025884639,0.00204212,3723.3,3723.2,2.7]
[1641025905737,0.00204212,3723.3,3723.2,7.54177638]
[1641025905943,0.00204212,3723.3,3723.2,4.04177638]
[1641025906336,0.00204212,3723.3,3723.2,2.7]
[1641025908240,0.9623502,3723.8,3723.2,2.7]
[1641025908639,0.00431581,3723.7,3723.2,2.7]
[1641025909074,0.00374739,3723.6,3723.2,2.7]
[1641025909480,0.00317896,3723.5,3723.2,2.7]
[1641025909881,0.00261054,3723.4,3723.2,2.7]
[1641025910279,0.00204212,3723.3,3723.2,2.7]
[1641025911581,0.00204212,3723.3,3723.2,3.3716]
[1641025912582,0.00204212,3723.3,3723.2,2.7]
[1641025917779,0.67380212,3723.3,3723.2,2.7]
[1641025918378,0.97380212,3723.3,3723.2,2.7]
[1641025920189,0.67380212,3723.3,3723.2,2.7]
[1641025920658,0.97380212,3723.3,3723.2,2.7]
[1641025921758,1.07683968,3723.3,3723.2,2.7]
[1641025925083,2.07683968,3723.3,3723.2,2.7]
[1641025925283,1.07683968,3723.3,3723.2,2.7]
[1641025925483,2.07683968,3723.3,3723.2,2.7]
[1641025927688,2.07683968,3723.3,3722.8,0.05937866]
[1641025927933,0.10303756,3722.9,3722.8,0.05937866]
[1641025928333,0.10303756,3722.9,3722.8,0.06017866]
[1641025928931,0.96631466,3722.9,3722.8,0.06017866]
[1641025931437,0.96631466,3722.9,3722.4,0.06930771]
[1641025931438,0.10303756,3722.7,3722.4,0.06930771]
[1641025931679,0.77504756,3722.6,3722.4,0.06930771]
[1641025931880,1.37504756,3722.6,3722.5,0.00170527]
[1641025933878,1.37504756,3722.6,3722.3,0.00284212]
[1641025936546,4.07504756,3722.6,3722.3,0.00284212]
[1641025937347,3.47504756,3722.6,3722.3,0.00284212]
[1641025938653,4.07504756,3722.6,3722.3,0.00284212]
[1641025942393,0.10303756,3722.5,3722.3,0.00284212]
[1641025942596,0.77505756,3722.4,3722.3,0.00284212]
[1641025942838,17.10505756,3722.4,3722.3,0.00284212]
[1641025943039,1.37505756,3722.4,3722.3,0.00284212]
[1641025944037,17.10505756,3722.4,3722.3,0.00284212]
[1641025944643,1.37505756,3722.4,3722.3,0.00284212]
[1641025944847,17.10505756,3722.4,3722.3,0.00284212]
[1641025945445,1.37505756,3722.4,3722.3,0.00284212]
[1641025946984,0.70303756,3722.4,3722.3,0.00284212]
[1641025947187,0.40303756,3722.4,3722.3,0.00284212]
[1641025947685,0.10303756,3722.5,3722.3,0.00284212]
[1641025955501,0.10303756,3722.5,3722.3,0.67465212]
[1641025955902,0.10303756,3722.5,3722.4,0.0022737]
[1641025958029,0.10303756,3722.5,3722.3,0.00284212]
[1641025959935,0.10303756,3722.5,3722.3,0.67464212]
[1641025960338,0.10303756,3722.5,3722.4,0.0022737]
[1641025962682,0.10303756,3722.5,3722.3,0.00284212]
[1641025977075,0.7082,3722.5,3722.4,4.0]
[1641025977275,0.05937866,3722.8,3722.4,7.36703055]
[1641025977475,0.05937866,3722.8,3722.4,8.66930425]
[1641025977678,0.03140557,3724.2,3722.8,0.67157]
[1641025977976,0.82308599,3724.2,3723.0,0.945948]
[1641025978380,0.07101402,3723.1,3723.0,0.945948]
[1641025979179,0.00170527,3723.1,3723.0,3.11028609]
[1641025979382,0.00170527,3723.1,3723.0,4.43570132]
[1641025979581,0.00170527,3723.1,3723.0,5.43570132]
[1641025979780,0.00170527,3723.1,3723.0,6.10727132]
[1641025979981,0.00170527,3723.1,3723.0,5.10727132]
[1641025980181,0.00170527,3723.1,3723.0,3.78185609]
[1641025980428,0.00170527,3723.1,3723.0,4.78185609]
[1641025981033,0.00170527,3723.1,3723.0,2.617518]
[1641025981231,0.00170527,3723.1,3723.0,0.67157]
[1641025981434,0.00170527,3723.1,3722.9,1.32541523]
[1641025981630,0.00170527,3723.1,3722.9,1.78175625]
[1641025981830,0.00113684,3723.0,3722.9,1.78175625]
[1641025982231,0.00113684,3723.0,3722.8,4.35089866]
[1641025982831,0.00113684,3723.0,3722.8,3.0201]
[1641025983031,0.00113684,3723.0,3722.6,1.45960595]
[1641025983431,0.00113684,3723.0,3722.6,1.40010595]
[1641025983634,0.00113684,3723.0,3722.7,1.33079866]
[1641025984080,0.00113684,3723.0,3722.6,1.40010595]
[1641025985283,0.00113684,3723.0,3722.6,1.33079866]
[1641025985883,0.00113684,3723.0,3722.5,1.33079866]
[1641025986287,0.00113684,3723.0,3722.6,0.00113685]
[1641025986488,2.70113684,3723.0,3722.6,1.33193551]
[1641025986688,2.70113684,3723.0,3722.6,2.00364551]
[1641025987089,2.70113684,3723.0,3722.7,1.33079866]
[1641025988134,0.00113684,3723.0,3722.6,2.00364551]
[1641025988734,0.00113684,3723.0,3722.6,0.67284685]
[1641025990139,0.00113684,3723.0,3722.7,1.33079866]
[1641025992078,0.00113684,3723.0,3722.6,0.67284685]
[1641025992079,0.00113684,3723.0,3722.8,1.33079866]
[1641025997435,0.00113684,3723.0,3722.7,2.00247866]
[1641025998036,0.00113684,3723.0,3722.8,1.33079866]
[1641025998436,0.00113684,3723.0,3722.9,1.33079866]
[1641025999912,0.00113684,3723.0,3722.7,0.67168]
[1641026001316,0.00113684,3723.0,3722.7,2.00247866]
[1641026002114,0.00113684,3723.0,3722.7,0.67168]
[1641026003933,0.00113684,3723.0,3722.6,1.33193551]
[1641026004838,0.00113684,3723.0,3722.6,1.86923551]
[1641026005036,0.00113684,3723.0,3722.6,0.53843685]
[1641026012133,0.86150312,3723.0,3722.6,0.53843685]
[1641026012538,1.46150312,3723.0,3722.6,0.53843685]
[1641026012738,0.01226231,3722.8,3722.2,3.29803881]
[1641026013136,0.01226231,3722.8,3722.3,0.00170527]
[1641026014193,0.67195,3722.5,3722.3,0.00170527]
[1641026014395,0.98679896,3722.4,3722.3,0.00170527]
[1641026014596,1.28679896,3722.4,3722.3,0.00170527]
[1641026014796,3.13214343,3722.4,3722.3,0.00170527]
[1641026014999,3.43214343,3722.4,3722.3,0.00170527]
[1641026016799,3.73214343,3722.4,3722.3,0.00170527]
[1641026016999,3.43214343,3722.4,3722.3,0.00170527]
[1641026017402,3.13214343,3722.4,3722.3,0.00170527]
[1641026018436,5.83214343,3722.4,3722.3,0.00170527]
[1641026018837,5.94022043,3722.4,3722.3,0.00170527]
[1641026019038,6.24022043,3722.4,3722.3,0.00170527]
[1641026022398,5.94022043,3722.4,3722.3,0.00170527]
[1641026023501,6.24022043,3722.4,3722.3,0.00170527]
[1641026024701,5.94022043,3722.4,3722.3,0.00170527]
[1641026026036,6.24022043,3722.4,3722.3,0.00170527]
[1641026027337,7.24022043,3722.4,3722.3,0.00170527]
[1641026027540,6.24022043,3722.4,3722.3,0.00170527]
[1641026027938,5.94022043,3722.4,3722.3,0.00170527]
[1641026028937,5.83214343,3722.4,3722.3,0.00170527]
[1641026029802,6.43214343,3722.4,3722.3,0.00170527]
[1641026031405,6.43214343,3722.4,3722.2,1.86894542]
[1641026031607,1.67204,3722.3,3722.2,1.86894542]
[1641026033435,1.86894542,3722.2,3721.1,4.30791436]
[1641026033637,1.86894542,3722.2,3721.8,0.06930896]
[1641026033638,2.1782092,3722.1,3721.8,0.06930896]
[1641026033835,2.50077785,3722.2,3721.8,0.06930896]
[1641026034035,1.0,3722.1,3721.8,0.06930896]
[1641026034439,2.50077785,3722.2,3721.8,0.06930896]
[1641026034639,0.67211,3721.9,3721.8,0.06930896]
[1641026035038,0.67211,3721.9,3721.8,0.07215108]
[1641026035039,1.27211,3721.9,3721.8,0.07215108]
[1641026035239,1.27211,3721.9,3721.8,0.00284212]
[1641026035640,3.49412364,3721.9,3721.8,0.00284212]
[1641026036040,4.49412364,3721.9,3721.8,0.00284212]
[1641026039686,3.49412364,3721.9,3721.8,0.00284212]
[1641026040330,0.6,3721.9,3721.8,0.00284212]
[1641026040533,1.55343988,3721.9,3721.8,0.00284212]
[1641026040733,1.86894542,3722.2,3721.8,0.00284212]
[1641026041535,1.86894542,3722.2,3721.6,0.01226619]
[1641026041733,1.86894542,3722.2,3721.6,0.01624515]
[1641026041933,1.86894542,3722.2,3721.7,0.00341054]
[1641026043543,1.86894542,3722.2,3721.5,0.00454739]
[1641026044892,1.92140478,3722.1,3721.5,0.00454739]
[1641026045096,1.93302653,3722.1,3721.5,0.00454739]
[1641026046294,1.95910572,3722.1,3721.5,0.00454739]
[1641026046494,1.92881732,3722.1,3721.5,0.00454739]
[1641026046695,2.50756876,3722.2,3721.5,0.00454739]
[1641026046895,1.97673692,3722.1,3721.5,0.00454739]
[1641026047098,2.50756876,3722.2,3721.5,0.00454739]
[1641026048542,1.91855688,3722.1,3721.5,0.00454739]
[1641026048746,1.92291285,3722.1,3721.5,0.00454739]
[1641026049040,2.20756876,3722.2,3721.3,0.00568423]
[1641026049246,1.86894542,3722.2,3721.3,0.00568423]
[1641026052786,1.94699809,3722.1,3721.3,0.00568423]
[1641026057439,1.92201131,3722.1,3721.3,0.00568423]
[1641026057740,0.67202,3722.0,3721.3,0.00568423]
[1641026057937,0.3,3722.0,3721.3,0.00568423]
[1641026058341,1.92103761,3721.9,3721.3,0.00568423]
[1641026058540,2.52103761,3721.9,3721.3,0.00568423]
[1641026058940,0.63978439,3721.9,3721.3,0.00568423]
[1641026059188,0.3,3721.9,3721.3,0.00568423]
[1641026059386,1.93391399,3721.8,3721.3,0.00568423]
[1641026061586,1.96193501,3721.9,3721.3,0.00568423]
[1641026061789,0.3,3721.9,3721.3,0.00568423]
[1641026061989,0.3,3722.0,3721.3,0.00568423]
[1641026062188,1.9201078,3721.9,3721.3,0.00568423]
[1641026062587,2.2201078,3721.9,3721.3,0.00568423]
[1641026062842,2.5201078,3721.9,3721.3,0.00568423]
[1641026063442,0.6,3721.9,3721.3,0.00568423]
[1641026063640,0.63227309,3721.9,3721.3,0.00568423]
[1641026063840,0.67205,3721.8,3721.3,0.00568423]
[1641026064042,0.97205,3721.8,3721.3,0.00568423]
[1641026064246,0.3,3721.8,3721.3,0.00568423]
[1641026064447,1.94056912,3721.7,3721.3,0.00568423]
[1641026064646,2.24056912,3721.7,3721.3,0.00568423]
[1641026064848,0.3,3721.7,3721.3,0.00568423]
[1641026065046,1.91578076,3721.7,3721.3,0.00568423]
[1641026065247,0.97206,3721.7,3721.3,0.00568423]
[1641026065445,0.3,3721.7,3721.3,0.00568423]
[1641026066047,2.29419572,3721.9,3721.3,0.00568423]
[1641026066250,2.96621572,3721.9,3721.3,0.00568423]
[1641026067096,2.66621572,3721.9,3721.3,0.00568423]
[1641026067294,0.33695077,3722.0,3721.3,0.00568423]
[1641026067594,3.68679896,3722.4,3721.3,0.00568423]
[1641026067595,2.21677846,3722.3,3721.3,0.00568423]
[1641026067792,0.03856926,3722.3,3721.3,0.00568423]
[1641026068791,2.46894542,3722.2,3721.3,0.00568423]
[1641026068994,2.46894542,3722.2,3721.3,1.33648289]
[1641026069494,1.86894542,3722.2,3721.4,0.00511581]
[1641026070343,1.86894542,3722.2,3721.4,1.33591447]
[1641026070745,1.86894542,3722.2,3721.5,0.67639739]
[1641026071149,1.86894542,3722.2,3721.6,0.00397896]
[1641026073547,2.46894542,3722.2,3721.6,0.00397896]
[1641026073750,2.46894542,3722.2,3721.4,0.00511581]
[1641026074687,3.14090542,3722.2,3721.4,0.00511581]
[1641026074892,3.14090542,3722.2,3721.3,1.33648289]
[1641026075289,3.14090542,3722.2,3721.4,0.00511581]
[1641026075890,0.67197,3722.1,3721.4,0.00511581]
[1641026076890,0.67197,3722.1,3721.3,0.00568423]
[1641026080643,0.67197,3722.1,3721.3,1.33648289]
[1641026081042,0.67197,3722.1,3721.4,0.00511581]
[1641026084503,0.67197,3722.1,3721.4,1.33591447]
[1641026084902,0.67197,3722.1,3721.5,0.00454739]
[1641026085105,2.61494235,3722.1,3721.5,0.00454739]
[1641026087544,2.59946476,3722.1,3721.5,0.00454739]
[1641026087746,2.62539386,3722.1,3721.5,0.00454739]
[1641026090295,2.62539386,3722.1,3721.3,1.33648289]
[1641026090703,2.62539386,3722.1,3721.4,0.00511581]
[1641026091996,0.3,3722.0,3721.4,0.00511581]
[1641026092298,0.67201,3721.8,3721.4,0.00511581]
[1641026092496,0.97201,3721.8,3721.4,0.00511581]
[1641026092697,1.27201,3721.8,3721.4,0.00511581]
[1641026093141,0.6,3721.8,3721.4,0.00511581]
[1641026093338,2.32535241,3721.9,3721.4,0.00511581]
[1641026093544,0.67201,3721.8,3721.3,0.00568423]
[1641026093942,0.97201,3721.8,3721.3,0.00568423]
[1641026094142,1.94275975,3721.7,3721.3,0.00568423]
[1641026094346,1.3103444,3721.8,3721.3,0.00568423]
[1641026094347,0.6,3721.8,3721.3,0.00568423]
[1641026094543,2.67989406,3721.9,3721.3,0.00568423]
[1641026094746,2.38074009,3721.9,3721.3,0.00568423]
[1641026094944,2.34479808,3721.9,3721.3,0.00568423]
[1641026095648,0.67203,3721.7,3721.3,0.00568423]
[1641026096046,0.97203,3721.7,3721.3,0.00568423]
[1641026096684,0.3,3721.7,3721.3,0.00568423]
[1641026097090,3.21142663,3721.8,3721.3,0.00568423]
[1641026097288,2.53941663,3721.8,3721.3,0.00568423]
[1641026097495,1.95361691,3721.7,3721.3,0.00568423]
[1641026097688,1.97313839,3721.7,3721.3,0.00568423]
[1641026098088,2.27313839,3721.7,3721.3,0.00568423]
[1641026098687,0.67204,3721.6,3721.3,0.00568423]
[1641026098888,2.175753,3721.5,3721.3,0.00568423]
[1641026100348,0.67208,3721.4,3721.3,0.00568423]
[1641026101348,2.67201397,3721.4,3721.3,0.00568423]
[1641026101547,0.67208,3721.4,3721.3,0.00568423]
[1641026102148,0.97208,3721.4,3721.3,0.00568423]
[1641026102349,0.67208,3721.4,3721.3,0.00568423]
[1641026102551,2.62889567,3721.4,3721.3,0.00568423]
[1641026102749,2.60601042,3721.4,3721.3,0.00568423]
[1641026102950,0.67208,3721.4,3721.3,0.00568423]
[1641026103150,2.6641055,3721.4,3721.3,0.00568423]
[1641026103752,0.3,3721.5,3721.3,0.00568423]
[1641026103954,1.97374287,3721.4,3721.3,0.00568423]
[1641026104202,0.3,3721.5,3721.3,0.00568423]
[1641026104399,2.33863907,3721.6,3721.3,0.00568423]
[1641026104602,0.3,3721.6,3721.3,0.00568423]
[1641026104800,2.21774779,3721.6,3721.3,0.00568423]
[1641026105901,0.67206,3721.5,3721.3,0.00568423]
[1641026107202,1.93804014,3721.4,3721.3,0.00568423]
[1641026109546,1.9790166,3721.4,3721.3,0.00568423]
[1641026109746,1.94814587,3721.4,3721.3,0.00568423]
[1641026110950,2.24814587,3721.4,3721.3,0.00568423]
[1641026116051,0.3,3721.4,3721.3,0.00568423]
[1641026116257,3.37206,3721.5,3721.3,0.00568423]
[1641026116556,2.7,3721.5,3721.3,0.81828423]
[1641026116758,1.4953,3721.5,3721.3,0.83050276]
[1641026116955,1.4953,3721.5,3721.4,0.00511581]
[1641026118657,1.4953,3721.5,3721.4,2.10383995]
[1641026120595,1.4953,3721.5,3721.4,3.8855962]
[1641026121000,1.4953,3721.5,3721.4,3.10383995]
[1641026126451,1.4953,3721.5,3721.4,1.00511581]
[1641026126692,1.4953,3721.5,3721.4,0.00511581]
[1641026126893,1.4953,3721.5,3721.4,1.80040069]
[1641026127094,1.4953,3721.5,3721.4,1.79528488]
[1641026127292,1.4953,3721.5,3721.4,1.80040069]
[1641026128091,1.4953,3721.5,3721.4,0.00511581]
[1641026128492,1.4953,3721.5,3721.3,0.00568423]
[1641026130450,1.4953,3721.5,3721.4,1.3509226]
[1641026130751,1.4953,3721.5,3721.4,1.35603841]
[1641026132358,1.4953,3721.5,3721.4,1.80040069]
[1641026132959,1.4953,3721.5,3721.4,0.00511581]
[1641026133158,1.4953,3721.5,3721.4,2.17509437]
[1641026134209,1.4953,3721.5,3721.4,3.97037925]
[1641026134405,1.4953,3721.5,3721.4,1.80040069]
[1641026135205,1.4953,3721.5,3721.4,0.00511581]
[1641026135604,1.4953,3721.5,3721.3,0.00568423]
[1641026136006,1.4953,3721.5,3721.4,1.34359093]
[1641026136407,1.4953,3721.5,3721.4,3.59785756]
[1641026136607,1.4953,3721.5,3721.4,4.59785756]
[1641026136808,1.4953,3721.5,3721.4,3.25426663]
[1641026137208,1.4953,3721.5,3721.4,2.25426663]
[1641026137850,1.4953,3721.5,3721.4,2.92608663]
[1641026138051,1.4953,3721.5,3721.4,3.92608663]
[1641026138653,1.4953,3721.5,3721.4,5.72137151]
[1641026139659,1.4953,3721.5,3721.4,3.92608663]
[1641026139860,0.06924321,3722.1,3721.5,1.25413497]
[1641026140062,0.06924321,3722.1,3721.9,0.67172]
[1641026140459,0.06924321,3722.1,3722.0,0.00170527]
[1641026141262,1.86894542,3722.2,3722.0,0.00170527]
[1641026144006,1.86894542,3722.2,3722.1,0.6717]
[1641026144203,1.86894542,3722.2,3722.1,4.78312273]
[1641026144405,1.86894542,3722.2,3722.1,5.08425958]
[1641026144602,1.86894542,3722.2,3722.1,6.7253257]
[1641026145448,1.86894542,3722.2,3722.1,5.38425958]
[1641026149296,1.86894542,3722.2,3722.1,7.17234774]
[1641026151802,4.56894542,3722.2,3722.1,7.17234774]
[1641026152403,4.56894542,3722.2,3722.1,22.90234774]
[1641026152605,4.56894542,3722.2,3722.1,5.38425958]
[1641026154945,0.90537346,3722.2,3722.1,5.38425958]
[1641026155745,0.90537346,3722.2,3722.1,2.48583685]
[1641026156594,0.90537346,3722.2,3722.1,1.67283685]
[1641026156799,0.90537346,3722.2,3722.1,0.00113685]
[1641026157199,0.90537346,3722.2,3721.9,0.00227369]
[1641026158398,0.90537346,3722.2,3721.7,0.67518054]
[1641026158601,0.90537346,3722.2,3721.8,0.00284212]
[1641026159200,0.90537346,3722.2,3721.9,0.67173]
[1641026159603,0.90537346,3722.2,3722.0,0.00170527]
[1641026160201,0.90537346,3722.2,3721.7,0.00341054]
[1641026160439,0.90537346,3722.2,3721.8,0.67175]
[1641026160641,0.90537346,3722.2,3721.9,2.1738292]
[1641026160845,0.90537346,3722.2,3721.9,2.17610289]
[1641026161043,0.90537346,3722.2,3722.0,0.00170527]
[1641026161643,0.90537346,3722.2,3722.0,0.67332527]
[1641026162045,0.90537346,3722.2,3722.1,0.00113685]
[1641026163851,0.06924176,3722.8,3722.1,0.00113685]
[1641026164299,0.00227369,3722.7,3722.2,1.34322]
[1641026164699,0.00170527,3722.6,3722.2,1.34322]
[1641026165102,0.00113685,3722.5,3722.3,0.67165]
[1641026165302,0.00113685,3722.5,3722.0,0.00170527]
[1641026166801,0.00113685,3722.5,3722.1,0.6717]
[1641026171251,0.00113685,3722.5,3722.0,0.00170527]
[1641026171697,0.00113685,3722.5,3721.8,0.73085]
[1641026171698,0.00113685,3722.5,3721.9,0.00227369]
[1641026172098,0.00113685,3722.5,3721.9,0.81623774]
[1641026172398,0.00113685,3722.5,3722.0,0.00170527]
[1641026173403,0.00113685,3722.5,3722.1,0.6715968]
[1641026173799,0.00113685,3722.5,3722.2,0.67164]
[1641026174407,0.00113685,3722.5,3722.2,1.67164]
[1641026175356,0.00113685,3722.5,3722.3,0.6715796]
[1641026175555,0.00113685,3722.5,3722.4,0.67158]
[1641026175956,0.00113685,3722.5,3722.4,1.67158]
[1641026176953,0.00113685,3722.5,3722.4,0.67158]
[1641026178857,0.00113685,3722.5,3722.4,1.67158]
[1641026180196,0.00113685,3722.5,3722.4,1.0]
[1641026180394,0.00113685,3722.5,3722.0,0.00170527]
[1641026180395,0.00113685,3722.5,3722.1,0.6717]
[1641026180598,0.00113685,3722.5,3722.4,1.79188019]
[1641026181797,0.00113685,3722.5,3722.2,1.79188019]
[1641026182398,0.00113685,3722.5,3722.4,1.34484402]
[1641026184848,0.00113685,3722.5,3722.2,1.79188019]
[1641026185048,0.00113685,3722.5,3722.4,1.34501493]
[1641026187695,0.00113685,3722.5,3722.2,1.79188019]
[1641026187895,0.00113685,3722.5,3722.0,2.01264403]
[1641026188294,0.00113685,3722.5,3722.1,0.00113685]
[1641026188496,0.00113685,3722.5,3722.2,0.67169]
[1641026189097,0.00113685,3722.5,3722.1,0.00113685]
[1641026189297,0.00113685,3722.5,3722.1,1.34034561]
[1641026189501,0.00113685,3722.5,3722.1,1.33920876]
[1641026190946,0.00113685,3722.5,3722.0,1.34091403]